bitfinex-derivatives/quotes_ETHF0:USTF0_20251119
["timestamp","ask_amount","ask_price","bid_price","bid_amount"]
[1763542947429,3.2078,3065.8,3065.6,1.36757]
[1763542947627,0.00489228,3066.3,3065.7,8.233]
[1763542947931,3.2078,3066.1,3065.9,0.52871]
[1763542948132,3.2078,3066.1,3065.7,0.52875]
[1763542948320,3.2078,3066.1,3065.2,3.211]
[1763542948525,3.2078,3065.7,3065.5,0.52878]
[1763542948725,3.2078,3065.7,3065.2,3.211]
[1763542948726,3.2078,3065.7,3065.2,0.52884]
[1763542948923,3.2078,3065.7,3065.4,0.5288]
[1763542949124,0.7967,3065.6,3065.3,0.52882]
[1763542949321,0.52879,3065.5,3064.8,0.02243406]
[1763542949521,3.2078,3064.9,3064.8,0.02243406]
[1763542949727,3.2078,3065.4,3065.3,0.52881]
[1763542949925,3.2078,3065.8,3064.8,3.23023406]
[1763542950132,3.2078,3065.4,3065.1,0.52886]
[1763542950334,3.2078,3065.4,3064.8,0.02243406]
[1763542950529,3.2078,3065.4,3065.0,0.52887]
[1763542950730,3.2078,3065.4,3064.8,0.02243406]
[1763542950947,3.2078,3065.0,3064.9,0.52889]
[1763542951235,3.2078,3065.0,3064.2,8.242]
[1763542951236,0.529,3064.4,3064.2,8.242]
[1763542951428,0.529,3064.4,3062.8,0.02]
[1763542951429,3.2078,3064.3,3063.6,0.52911]
[1763542951626,3.2078,3064.3,3063.1,3.2078]
[1763542951828,3.2078,3064.3,3063.6,3.2078]
[1763542952134,3.2078,3063.9,3063.6,0.52911]
[1763542952337,3.2078,3063.9,3062.1,8.242]
[1763542952338,0.5161,3062.7,3059.7,0.02]
[1763542952538,3.2078,3060.8,3060.6,0.52962]
[1763542952842,0.5161,3062.7,3060.9,0.8543]
[1763542953029,0.94195776,3063.1,3060.9,0.8543]
[1763542953030,0.94195776,3063.1,3061.6,0.52945]
[1763542953232,0.94195776,3063.1,3061.8,0.52943]
[1763542953233,0.00490084,3062.1,3061.8,0.52943]
[1763542953436,3.2078,3061.9,3061.8,0.53353323]
[1763542953932,3.2078,3062.5,3062.3,0.52933]
[1763542954130,3.2078,3062.5,3062.1,0.52936]
[1763542954337,3.2078,3062.5,3062.4,0.52933]
[1763542954639,3.2078,3062.5,3061.8,3.21190323]
[1763542954841,3.2078,3061.9,3061.8,0.00410323]
[1763542955141,3.2117692,3061.9,3061.8,0.00410323]
[1763542956043,0.0039692,3061.9,3061.8,6.53353323]
[1763542956237,0.00490084,3062.2,3062.1,0.52938]
[1763542957238,0.00877242,3062.2,3062.1,2.75038]
[1763542957434,0.5291,3063.8,3062.8,0.52924]
[1763542957638,3.2078,3063.0,3062.9,0.52923]
[1763542958546,0.00490084,3063.3,3063.2,0.52919]
[1763542959441,0.00490084,3063.3,3063.2,8.95219]
[1763542959745,0.00863639,3063.3,3063.2,8.95019]
[1763542959941,0.00863639,3063.3,3056.5,5.6734284]
[1763542959942,3.2078,3062.9,3061.8,0.57553323]
[1763542960141,3.2078,3061.9,3061.8,0.04610323]
[1763542960645,3.2078,3062.7,3061.8,6.04610323]
[1763542960945,3.2078,3062.7,3062.5,0.5293]
[1763542961342,3.2078,3062.7,3062.4,0.52932]
[1763542961538,3.2078,3062.7,3062.6,0.52929]
[1763542961940,4.0425,3062.7,3062.0,0.5294]
[1763542962237,4.0425,3062.7,3062.1,0.52937]
[1763542962444,4.0425,3062.7,3061.9,0.00490084]
[1763542962843,3.2078,3062.7,3062.6,0.52929]
[1763542963234,3.2078,3062.7,3062.3,0.52933]
[1763542963648,3.2078,3062.7,3062.3,8.274]
[1763542963844,3.2078,3062.7,3062.5,0.5293]
[1763542966138,3.2078,3063.1,3063.0,0.52922]
[1763542967644,0.00863639,3063.3,3063.2,0.52919]
[1763542968337,0.00863639,3063.3,3063.2,8.85119]
[1763542969547,3.2078,3065.5,3063.2,14.322]
[1763542969738,3.2078,3065.5,3065.2,0.52884]
[1763542969944,3.2078,3065.5,3065.3,8.411]
[1763542970240,3.2078,3065.9,3065.3,11.6188]
[1763542970444,3.2078,3065.9,3065.3,3.2078]
[1763542970747,3.21517451,3065.9,3065.7,0.52875]
[1763542971048,0.00737451,3065.9,3065.8,3.2078]
[1763542971545,0.8347,3066.3,3066.2,0.52867]
[1763542971852,2.57956477,3068.0,3066.5,0.52861]
[1763542971853,3.2078,3067.0,3066.5,0.52861]
[1763542972049,3.2078,3067.0,3066.6,0.5286]
[1763542972245,3.2078,3067.0,3066.5,8.268]
[1763542972547,3.2078,3067.0,3066.6,8.401]
[1763542972747,0.00489269,3066.9,3066.7,0.52858]
[1763542972945,0.00489269,3066.9,3066.8,8.401]
[1763542975245,0.00489269,3066.9,3066.8,8.391]
[1763542976260,0.0035057,3067.0,3066.9,0.52855]
[1763542976447,0.0035057,3067.0,3066.9,3.73635]
[1763542976652,3.2078,3067.7,3067.6,0.52843]
[1763542976957,0.8347,3068.0,3067.8,0.52839]
[1763542977154,0.8347,3068.0,3067.9,8.384]
[1763542977744,0.83768355,3068.0,3067.9,0.00306913]
[1763542978045,0.83768355,3068.0,3066.6,2.27728316]
[1763542978046,0.8347,3067.2,3067.0,0.52853]
[1763542978352,0.8347,3067.2,3067.1,2.266]
[1763542978548,0.8347,3067.2,3066.8,3.2078]
[1763542978750,0.8347,3067.2,3067.1,8.378]
[1763542978951,0.8347,3067.2,3067.1,8.90584598]
[1763542980751,0.8347,3067.2,3067.1,0.00232598]
[1763542981250,1.3212,3067.2,3067.1,0.00232598]
[1763542981446,0.52855,3066.9,3066.8,2.51516844]
[1763542981652,1.0759,3066.7,3066.4,3.2078]
[1763542982057,1.0759,3066.7,3066.4,11.5708]
[1763542982253,1.0759,3066.7,3066.4,3.73643]
[1763542982457,1.0759,3066.7,3066.5,8.362]
[1763542982672,0.00489269,3066.9,3066.8,0.52857]
[1763542983550,3.2078,3067.4,3067.3,0.52848]
[1763542983960,3.2078,3067.8,3067.7,0.5284]
[1763542984359,3.2078,3067.8,3067.6,8.357]
[1763542984360,3.7362,3067.8,3067.6,8.357]
[1763542984565,3.2078,3067.8,3067.7,0.52841]
[1763542985850,0.00298355,3068.0,3067.9,0.52838]
[1763542986654,0.00298355,3068.0,3067.6,11.5648]
[1763542986860,0.00298355,3068.0,3067.9,0.52838]
[1763542987264,0.00298355,3068.0,3067.9,8.87338]
[1763542987852,0.00298355,3068.0,3067.7,0.5284]
[1763542988055,0.53135355,3068.0,3067.8,8.34]
[1763542988465,0.53135355,3068.0,3067.8,8.86839]
[1763542988659,0.53135355,3068.0,3067.8,8.34]
[1763542988864,0.00298355,3068.0,3067.6,0.52842]
[1763542989064,3.2078,3067.9,3067.7,8.339]
[1763542989261,3.2078,3067.9,3067.7,8.86741]
[1763542989458,0.5284,3067.8,3067.7,8.339]
[1763542989659,1.0759,3067.4,3067.2,0.52848]
[1763542989860,1.0759,3067.4,3067.3,8.86448]
[1763542990162,1.0759,3067.4,3067.2,0.5285]
[1763542990368,1.0759,3067.4,3067.3,3.38848]
[1763542990558,1.0759,3067.4,3067.3,8.86248]
[1763542990758,1.0759,3067.4,3067.3,0.52848]
[1763542991067,1.0759,3067.4,3067.3,8.86148]
[1763542991264,3.2078,3067.5,3067.3,8.86148]
[1763542991265,3.2078,3067.5,3067.4,0.52846]
[1763542991670,0.00298355,3068.0,3067.9,0.52838]
[1763542992860,0.53134355,3068.0,3067.9,8.326]
[1763542993060,0.00298355,3068.0,3067.9,8.85438]
[1763542998070,0.00298355,3068.0,3067.9,0.52838]
[1763542998266,0.00298355,3068.0,3067.9,8.83338]
[1763542998974,0.00298355,3068.0,3067.9,8.83038]
[1763542999173,0.00298355,3068.0,3067.9,0.52838]
[1763542999469,2.21425355,3068.0,3067.9,6.901]
[1763542999672,2.9844628,3068.0,3067.9,6.901]
[1763542999975,1.0759,3067.8,3067.4,3.2078]
[1763543000171,0.52842,3067.7,3067.5,7.72443]
[1763543000376,1.6829,3067.7,3067.6,0.52843]
[1763543000574,0.77099541,3067.7,3067.5,7.72445]
[1763543000774,2.21131,3067.7,3067.6,0.52843]
[1763543001078,2.98235028,3067.7,3067.6,8.297]
[1763543001272,2.98235028,3067.7,3067.6,8.82543]
[1763543001570,1.0759,3067.2,3066.7,3.2078]
[1763543001770,0.77103028,3067.1,3067.0,0.52852]
[1763543002077,0.77103028,3067.1,3066.7,3.2078]
[1763543002271,1.0759,3066.6,3066.5,0.52862]
[1763543002468,1.84693028,3066.6,3066.5,0.52862]
[1763543003074,1.84693028,3066.6,3066.4,0.53232528]
[1763543003275,0.77103028,3066.5,3066.4,0.53232528]
[1763543003970,2.45393028,3066.5,3066.4,0.00368528]
[1763543004479,0.77103028,3066.5,3066.4,0.53232528]
[1763543005075,1.0759,3067.2,3066.5,0.5]
[1763543005277,0.77181028,3067.1,3066.8,3.2078]
[1763543005474,1.0759,3067.2,3067.1,0.52852]
[1763543005680,3.2078,3067.7,3067.6,0.52843]
[1763543005984,3.2078,3067.7,3066.5,0.5]
[1763543005985,0.00298355,3068.0,3067.9,0.52838]
[1763543006280,4.35857821,3068.8,3068.1,0.52834]
[1763543006486,3.2078,3068.8,3068.1,3.73614]
[1763543006681,3.2078,3068.8,3068.7,0.52824]
[1763543006980,2.15127821,3069.0,3067.5,1.9690896]
[1763543006981,1.0005,3069.0,3068.9,0.52821]
[1763543007381,1.53155824,3069.0,3068.9,0.00365076]
[1763543007679,1.00336824,3069.0,3068.9,0.00365076]
[1763543008070,1.53155824,3069.0,3068.9,0.00365076]
[1763543008676,1.53155824,3069.0,3068.6,0.53314269]
[1763543008677,1.00336824,3069.0,3068.6,0.00489269]
[1763543008878,3.2078,3068.7,3068.1,3.2078]
[1763543009179,1.0005,3068.1,3068.0,0.52836]
[1763543009680,1.0005,3068.1,3068.0,0.53184009]
[1763543010485,3.2078,3068.2,3068.1,0.52834]
[1763543014880,1.00336824,3069.0,3068.9,0.52821]
[1763543017182,2.62146824,3069.0,3068.8,0.52821]
[1763543017484,1.6181,3068.9,3068.8,0.52821]
[1763543017883,1.00336824,3069.0,3068.9,0.52821]
[1763543028592,2.62146824,3069.0,3068.9,0.52821]
[1763543028986,1.6181,3068.7,3068.6,3.73606]
[1763543029188,1.6181,3068.7,3068.6,0.52826]
[1763543029388,1.6181,3068.6,3068.5,0.52827]
[1763543032784,2.62146824,3069.0,3068.9,0.52821]
[1763543033088,1.6181,3068.8,3068.7,0.52824]
[1763543034888,1.00336824,3069.0,3068.9,0.52821]
[1763543035083,2.62146824,3069.0,3068.6,3.2078]
[1763543035883,2.62146824,3069.0,3068.9,0.52821]
[1763543038393,1.00336824,3069.0,3068.6,3.2078]
[1763543038591,1.00336824,3069.0,3068.9,0.52821]
[1763543038893,1.6181,3068.7,3068.6,3.73606]
[1763543041798,2.96095824,3069.0,3068.9,0.52821]
[1763543042199,2.43276824,3069.0,3068.9,0.52821]
[1763543043296,1.4294,3068.3,3068.2,6.06261636]
[1763543043503,1.4294,3068.3,3068.2,0.52833]
[1763543044599,1.4294,3068.3,3068.0,0.00348009]
[1763543044600,1.95771,3068.3,3068.1,0.52834]
[1763543044898,1.4294,3068.1,3068.0,0.53183009]
[1763543046501,1.4294,3068.1,3067.7,4.96995966]
[1763543046802,1.4294,3067.4,3067.3,3.2078]
[1763543047102,1.4294,3066.8,3066.7,3.2078]
[1763543047304,2.3223,3067.0,3066.9,0.52855]
[1763543047902,2.32578249,3067.0,3066.9,0.0031847]
[1763543048203,2.32578249,3067.0,3066.9,0.5317347]
[1763543049903,0.89638249,3067.0,3066.9,0.5317347]
[1763543050700,2.32578249,3067.0,3066.9,0.5317347]
[1763543055299,0.89638249,3067.0,3066.9,0.5317347]
[1763543055899,2.32578249,3067.0,3066.9,0.5317347]
[1763543057005,1.95798,3066.7,3066.6,0.00489269]
[1763543057305,1.4294,3066.6,3066.3,3.2078]
[1763543057507,1.4294,3066.6,3066.4,0.52864]
[1763543057802,1.958,3066.6,3066.3,3.2078]
[1763543058001,1.4294,3066.4,3066.3,3.73645]
[1763543058400,1.4294,3066.4,3066.3,3.73976228]
[1763543058901,1.4294,3066.4,3066.3,0.00331228]
[1763543059102,2.3223,3066.5,3066.4,0.52864]
[1763543059908,1.4294,3066.4,3066.3,0.53196228]
[1763543060307,1.4294,3066.3,3065.8,0.52874]
[1763543060499,2.3223,3065.5,3065.4,0.52881]
[1763543060696,0.8929,3065.0,3064.8,3.2078]
[1763543060899,1.4294,3064.8,3064.7,0.52893]
[1763543061110,2.3223,3064.5,3064.4,3.73677]
[1763543061315,2.32475386,3064.5,3064.4,3.73973105]
[1763543061501,2.32475386,3064.5,3064.4,0.00296105]
[1763543061808,2.32475386,3064.5,3064.4,3.21076105]
[1763543062702,2.32475386,3064.5,3064.4,0.00296105]
[1763543062904,1.439,3063.7,3063.6,3.2078]
[1763543063104,0.8816,3063.5,3063.3,0.52916]
[1763543064011,0.8816,3063.5,3063.3,0.53257616]
[1763543064604,0.8816,3064.0,3063.3,0.53257616]
[1763543064605,0.8816,3064.0,3063.9,0.52907]
[1763543064805,0.8816,3064.0,3063.9,3.73687]
[1763543067014,1.439,3063.4,3063.3,0.00341616]
[1763543067405,1.439,3063.4,3063.3,1.616e-05]
[1763543067406,5.17595,3063.4,3063.3,1.616e-05]
[1763543067804,1.439,3063.4,3063.3,1.616e-05]
[1763543068013,0.8816,3063.5,3063.4,0.52915]
[1763543068217,0.8816,3063.5,3063.4,3.73695]
[1763543068412,2.3206,3063.5,3063.4,3.2078]
[1763543068711,0.55876462,3063.5,3063.4,4.89370244]
[1763543068911,1.439,3063.9,3063.8,0.52908]
[1763543069404,1.439,3063.9,3063.7,0.52909]
[1763543069611,2.33435386,3064.5,3064.4,0.52898]
[1763543070112,1.439,3064.3,3064.2,0.529]
[1763543070504,2.33435386,3064.5,3064.4,0.52898]
[1763543070909,2.33435386,3064.5,3064.2,3.2078]
[1763543070910,1.439,3064.3,3064.2,3.7368]
[1763543072109,1.3694,3064.1,3063.6,4.89370244]
[1763543072303,1.3694,3064.0,3063.9,0.52907]
[1763543072516,0.89535386,3064.5,3063.6,4.89370244]
[1763543072517,1.3694,3063.7,3063.6,0.52912]
[1763543075718,2.2119,3063.6,3063.3,1.616e-05]
[1763543076320,2.2119,3063.6,3063.5,0.52913]
[1763543076618,5.4197,3063.6,3063.5,0.52914]
[1763543077214,4.0503,3063.6,3063.1,4.89370244]
[1763543077515,5.4197,3063.6,3063.5,0.52914]
[1763543078109,1.3694,3063.5,3063.4,0.52914]
[1763543078306,1.3694,3063.5,3063.4,4e-05]
[1763543078614,4.0503,3063.6,3062.3,3.2078]
[1763543078615,0.8425,3063.0,3062.3,3.2078]
[1763543078817,1.3694,3062.9,3062.8,0.52926]
[1763543079113,0.00489269,3063.0,3062.9,1.94094]
[1763543079512,0.8425,3063.6,3063.5,0.52914]
[1763543079717,2.2119,3063.6,3063.5,0.52914]
[1763543079915,4.5772,3063.9,3063.8,0.52908]
[1763543080112,3.2078,3063.9,3063.8,3.62668244]
[1763543080312,3.2078,3063.9,3063.8,0.52908]
[1763543080820,0.00489269,3064.2,3064.1,0.52903]
[1763543081010,1.3694,3063.8,3063.7,0.5291]
[1763543081212,3.21269269,3064.2,3063.7,0.5291]
[1763543081213,1.3694,3064.1,3064.0,0.52905]
[1763543081409,1.3694,3063.8,3063.7,0.5291]
[1763543081712,2.2119,3063.6,3063.5,0.00489269]
[1763543081913,2.2119,3063.6,3063.5,0.53402269]
[1763543082219,2.2119,3063.6,3063.5,0.00489269]
[1763543083224,1.3694,3063.2,3063.1,0.52921]
[1763543083417,1.3694,3063.4,3063.3,0.52916]
[1763543083616,2.2119,3063.6,3063.5,0.52914]
[1763543083817,2.2119,3063.6,3063.4,0.52915]
[1763543084115,1.3694,3063.3,3063.2,0.52917]
[1763543084516,2.2119,3063.6,3063.5,0.52914]
[1763543084814,1.3694,3063.3,3063.2,3.73699]
[1763543085014,2.2119,3063.6,3063.5,0.52914]
[1763543085319,1.3694,3063.4,3063.3,0.52915]
[1763543088020,2.2119,3063.6,3063.5,0.52914]
[1763543089322,0.8425,3063.6,3063.5,0.52914]
[1763543089527,2.2119,3063.6,3063.5,0.52914]
[1763543090325,1.3694,3063.5,3063.4,3.73695]
[1763543090524,2.1500869,3063.5,3063.4,3.73695]
[1763543090922,1.3694,3063.0,3062.0,2.55060244]
[1763543091230,5.3578869,3063.0,3062.9,0.5326377]
[1763543091527,1.3694,3062.0,3061.9,0.52941]
[1763543091821,4.5772,3062.0,3061.9,0.52941]
[1763543092319,4.4277274,3062.0,3061.9,0.52941]
[1763543092524,3.21182514,3062.0,3061.9,1.94381905]
[1763543092928,0.00402514,3062.0,3061.9,1.94381905]
[1763543093613,1.37342514,3062.0,3061.9,0.00270905]
[1763543094515,1.90282514,3062.0,3061.9,0.00270905]
[1763543094819,1.37342514,3062.0,3061.9,0.00270905]
[1763543095225,1.90282514,3062.0,3061.9,0.00270905]
[1763543095527,0.00489269,3062.3,3062.2,1.94106]
[1763543095726,1.75730036,3063.7,3062.2,1.94106]
[1763543095727,4.5772,3063.2,3063.1,0.52921]
[1763543096324,4.58078164,3063.2,3063.1,0.52921]
[1763543096530,1.3694,3062.8,3062.2,3.2078]
[1763543096728,1.3694,3063.0,3062.9,0.52924]
[1763543096924,3.21138164,3063.2,3063.1,0.52921]
[1763543097633,3.21138164,3063.2,3063.1,1.94091]
[1763543099237,4.58078164,3063.2,3063.1,0.52921]
[1763543099531,3.21138164,3063.2,3063.1,0.52921]
[1763543099728,0.00358164,3063.2,3063.1,1.94091]
[1763543101524,0.5173,3064.8,3063.5,2.2683]
[1763543101525,3.2078,3064.0,3063.5,2.2683]
[1763543101727,3.2078,3064.0,3063.9,0.52906]
[1763543102032,3.2078,3064.0,3063.9,1.96746]
[1763543102231,4.6427,3064.0,3063.9,0.52906]
[1763543102428,0.52913,3063.6,3063.2,0.52918]
[1763543102624,4.6427,3063.3,3063.2,0.52918]
[1763543102830,1.4349,3063.9,3063.8,0.52908]
[1763543103031,1.4349,3063.9,3063.4,3.2078]
[1763543103032,4.6427,3063.9,3063.4,3.2078]
[1763543103330,1.4349,3063.7,3063.6,0.52911]
[1763543103731,1.43761634,3063.7,3063.6,0.52911]
[1763543103931,0.00271634,3063.7,3063.6,1.96751]
[1763543104929,3.2078,3064.4,3063.9,1.4384]
[1763543105130,4.6427,3064.4,3064.3,0.529]
[1763543105941,4.6463339,3064.4,3064.3,0.53279321]
[1763543106333,4.6463339,3064.4,3064.3,0.00379321]
[1763543106737,4.6463339,3064.4,3064.3,0.53279321]
[1763543106939,4.6463339,3064.4,3064.3,0.00379321]
[1763543107143,4.6463339,3064.4,3064.3,0.53279321]
[1763543108745,0.00489269,3064.7,3064.6,1.96735]
[1763543108942,1.8027,3065.4,3065.3,0.52883]
[1763543109843,1.43836832,3065.4,3065.3,0.52883]
[1763543110047,0.00346832,3065.4,3065.3,3.65313244]
[1763543110642,1.43836832,3065.4,3065.0,0.52887]
[1763543110838,1.43836832,3065.4,3065.0,3.2078]
[1763543110839,1.4349,3065.1,3065.0,3.2078]
[1763543111332,1.4349,3065.3,3065.0,3.2078]
[1763543111533,1.4349,3065.2,3065.1,0.52886]
[1763543114244,1.4349,3065.2,3065.0,3.2078]
[1763543114449,1.4349,3065.2,3065.1,0.52886]
[1763543114944,1.4349,3065.2,3064.6,3.73675]
[1763543114945,1.4349,3064.7,3064.6,3.73675]
[1763543115452,0.8293,3065.0,3064.6,3.73675]
[1763543115453,2.2642,3065.0,3064.9,0.5289]
[1763543116250,1.4349,3064.7,3064.6,3.73674]
[1763543117051,2.2642,3065.0,3064.9,0.5289]
[1763543117448,3.2078,3065.3,3065.2,0.52884]
[1763543117648,4.6427,3065.3,3064.7,1.68590244]
[1763543117850,1.4349,3065.1,3065.0,0.52886]
[1763543118647,1.4349,3064.7,3064.6,3.73675]
[1763543119053,2.2642,3065.0,3064.9,0.5289]
[1763543120161,0.00346832,3065.4,3065.2,1.96724]
[1763543120352,1.4349,3065.1,3065.0,3.2078]
[1763543120655,1.4349,3065.1,3065.0,3.73667]
[1763543121952,1.43836832,3065.4,3065.3,0.52883]
[1763543123657,1.4349,3065.1,3065.0,3.2078]
[1763543124360,1.4349,3065.1,3065.0,3.73668]
[1763543125059,1.4166,3064.8,3064.7,0.52893]
[1763543126159,0.8003,3064.5,3064.4,3.73678]
[1763543126347,1.94558,3064.4,3064.3,0.00379321]
[1763543126554,1.4166,3064.1,3064.0,0.00489269]
[1763543127153,0.52907,3063.9,3063.5,0.52912]
[1763543127354,1.4166,3063.6,3063.5,0.52912]
[1763543127558,1.4166,3063.6,3063.5,0.5316181]
[1763543128756,1.94577,3063.3,3063.2,0.00489269]
[1763543128961,1.4166,3062.4,3062.3,3.2078]
[1763543129151,0.4161,3063.0,3061.8,1.75241774]
[1763543129152,1.4166,3061.9,3061.8,1.75241774]
[1763543129356,3.2078,3062.0,3061.8,0.52943]
[1763543129564,1.4166,3062.0,3061.9,0.52941]
[1763543129856,0.00250582,3062.0,3061.9,0.53298374]
[1763543130064,0.00250582,3062.0,3061.9,1.94758374]
[1763543130365,1.41910582,3062.0,3061.9,0.00357374]
[1763543130756,4.62690582,3062.0,3061.9,0.00357374]
[1763543131274,5.42720582,3062.0,3061.9,0.00357374]
[1763543132173,1.3894,3061.3,3060.6,3.2078]
[1763543132360,1.3894,3061.3,3060.9,0.52958]
[1763543132566,1.3894,3061.3,3060.6,3.2078]
[1763543132761,4.017,3061.5,3060.6,3.2078]
[1763543132963,1.3894,3060.7,3060.6,3.2078]
[1763543133169,1.3894,3060.7,3060.6,3.21011264]
[1763543133374,0.3894,3060.7,3060.6,3.21011264]
[1763543133576,1.3894,3060.4,3059.7,3.2278]
[1763543133877,3.73749,3060.3,3059.7,0.02]
[1763543134067,0.52971,3060.2,3059.7,0.02]
[1763543134572,1.3894,3059.8,3059.7,0.0241354]
[1763543134877,4.60014566,3059.8,3059.7,0.0241354]
[1763543135180,1.3894,3058.9,3058.8,3.2078]
[1763543135372,0.00294566,3059.8,3059.4,2.187]
[1763543135676,1.3894,3058.8,3058.7,3.2278]
[1763543135980,3.2078,3059.6,3058.8,0.8562]
[1763543136273,1.3894,3059.7,3059.6,0.52981]
[1763543136467,0.00294566,3059.8,3059.6,0.52981]
[1763543136770,1.3894,3059.5,3058.8,4.06730302]
[1763543137075,0.00294566,3059.8,3058.8,4.06730302]
[1763543137076,0.00294566,3059.8,3059.3,3.73766]
[1763543137372,1.3894,3059.4,3058.8,0.85950302]
[1763543137574,1.3894,3059.4,3059.2,0.52987]
[1763543137873,0.00294566,3059.8,3059.6,0.52981]
[1763543138570,0.00294566,3059.8,3059.7,1.3308]
[1763543138977,3.2078,3060.8,3060.2,1.86051]
[1763543139373,3.2078,3060.8,3060.7,1.86042]
[1763543139674,3.2078,3061.5,3061.3,0.52951]
[1763543139974,3.2078,3061.9,3061.6,0.52946]
[1763543140177,3.21143216,3061.9,3061.6,0.52946]
[1763543140475,3.21143216,3061.9,3061.4,0.53440091]
[1763543140676,4.5972,3061.5,3061.4,0.00490091]
[1763543140982,1.3894,3061.4,3060.6,0.8562]
[1763543141175,3.2078,3061.1,3060.6,0.8562]
[1763543141375,3.73735,3061.1,3060.7,0.52961]
[1763543141577,3.2078,3061.1,3060.9,0.52958]
[1763543141776,0.52949,3061.5,3060.0,0.8562]
[1763543141777,1.3894,3061.3,3061.2,0.52953]
[1763543141976,1.3894,3061.3,3061.2,0.00292355]
[1763543142378,1.91892,3061.3,3061.2,0.00292355]
[1763543142580,1.3894,3061.3,3061.2,0.00292355]
[1763543143480,1.3894,3060.5,3060.4,3.73747]
[1763543144480,1.3894,3060.5,3060.4,3.74168923]
[1763543144875,1.3894,3060.5,3060.4,0.53388923]
[1763543145381,1.3894,3060.5,3059.6,1.97313531]
[1763543145382,1.3894,3059.9,3059.6,0.5298]
[1763543145674,0.53463091,3060.1,3059.6,3.2078]
[1763543145882,1.3894,3059.5,3059.4,0.52984]
[1763543146073,1.3894,3059.5,3059.1,0.5299]
[1763543146274,1.3894,3059.2,3059.1,0.0041219]
[1763543146477,3.21020516,3059.5,3059.1,0.5340119]
[1763543146684,0.00240516,3059.5,3059.4,0.52985]
[1763543147083,1.3894,3059.2,3059.1,3.2119219]
[1763543147279,0.00240516,3059.5,3059.1,3.7418219]
[1763543147480,0.00240516,3059.5,3059.4,0.52985]
[1763543148578,0.00240516,3059.5,3059.4,2.71685]
[1763543149780,0.00240516,3059.5,3059.4,5.95885]
[1763543150283,3.2078,3059.9,3059.8,1.86058]
[1763543150485,3.2078,3059.9,3059.8,0.52978]
[1763543150688,3.2078,3059.9,3059.5,3.77183]
[1763543150883,3.73756,3059.9,3059.5,0.52983]
[1763543151185,3.74163593,3059.9,3059.5,0.52982]
[1763543151374,3.21187593,3059.9,3059.5,0.52982]
[1763543151687,1.3894,3059.5,3059.2,3.2078]
[1763543151883,1.3894,3059.5,3059.2,5.0048]
[1763543152082,1.3894,3059.4,3059.3,0.52986]
[1763543152384,1.3894,3059.3,3059.2,3.73768]
[1763543152587,1.91928,3059.2,3059.1,0.0041219]
[1763543152883,3.2078,3059.3,3058.5,3.77049577]
[1763543152884,1.91935,3058.8,3058.5,3.77049577]
[1763543153188,1.91935,3058.8,3057.1,3.2078]
[1763543153189,5.82993531,3058.8,3057.1,3.2078]
[1763543153485,3.2078,3057.8,3057.6,0.8562]
[1763543153974,3.2078,3057.8,3057.6,0.00245022]
[1763543154178,3.73793,3057.8,3057.6,0.00245022]
[1763543155075,0.53025,3057.1,3056.7,0.02]
[1763543155284,3.2078,3056.8,3055.5,0.8562]
[1763543155583,3.2078,3057.0,3056.9,0.8562]
[1763543155978,3.21201666,3057.0,3056.9,0.85866664]
[1763543156181,3.21201666,3057.0,3054.1,2.32648636]
[1763543156382,3.2078,3055.3,3055.2,0.8562]
[1763543156587,0.00490909,3055.6,3055.2,0.8562]
[1763543156882,3.2078,3056.5,3056.0,0.8562]
[1763543157284,3.2078,3056.5,3056.1,0.53041]
[1763543157483,3.2078,3056.5,3056.0,1.39010369]
[1763543157685,3.2078,3056.1,3056.0,1.39010369]
[1763543157879,3.2078,3056.1,3056.0,3.89710369]
[1763543158297,3.2078,3056.1,3056.0,0.85967369]
[1763543158498,3.21270909,3056.6,3056.0,6.85967369]
[1763543158793,3.21270909,3056.6,3056.4,0.53035]
[1763543159193,3.21270909,3056.6,3056.5,6.0]
[1763543159494,9.09e-06,3056.6,3056.5,8.311]
[1763543159789,0.00421666,3057.0,3056.8,1.38648]
[1763543160092,0.00421666,3057.0,3056.9,3.296]
[1763543160389,3.2078,3057.4,3057.3,0.53021]
[1763543160788,3.2078,3057.4,3057.3,3.82621]
[1763543161088,0.00490909,3057.7,3057.6,1.38636]
[1763543161494,1.335e-05,3057.7,3057.6,7.38636]
[1763543161789,3.2078,3058.4,3058.1,0.53006]
[1763543161990,3.2078,3058.4,3057.6,0.8562]
[1763543162293,3.2078,3058.4,3058.1,0.53006]
[1763543162589,3.2078,3058.4,3057.9,0.00490909]
[1763543162787,3.21135006,3058.4,3057.9,0.00490909]
[1763543162995,3.2078,3058.0,3057.9,0.00490909]
[1763543163184,3.2078,3058.0,3057.9,2.27690909]
[1763543163382,3.2078,3058.0,3057.9,0.00490909]
[1763543163589,3.2078,3058.0,3057.9,3.29890909]
[1763543164187,3.21135006,3058.4,3057.9,3.82899909]
[1763543164493,3.21135006,3058.4,3057.9,3.29890909]
[1763543164796,3.21135006,3058.4,3058.2,0.53005]
[1763543165089,3.21135006,3058.4,3058.2,0.53342276]
[1763543165487,3.21135006,3058.4,3058.3,0.9058]
[1763543165985,0.00490909,3058.6,3058.4,0.53002]
[1763543166385,0.00490909,3058.6,3058.5,2.616]
[1763543166587,0.00490909,3058.6,3058.4,6.53002]
[1763543166785,9.09e-06,3058.6,3058.5,15.07]
[1763543166993,0.00286389,3058.6,3058.5,15.07]
[1763543167188,3.2078,3059.8,3058.5,15.07]
[1763543167388,3.2078,3059.8,3059.0,3.2078]
[1763543167583,3.2078,3059.8,3059.1,1.867]
[1763543168198,3.21547039,3059.8,3059.1,1.867]
[1763543168400,3.21547039,3059.8,3059.4,0.52984]
[1763543168700,3.21547039,3059.8,3059.5,0.52981]
[1763543169290,3.21547039,3059.8,3059.4,0.52984]
[1763543169494,3.21547039,3059.8,3059.5,0.52982]